Cogmind - Beta 16 @@@ ROGUE MODE // 2026.01.10 @ 13:12:14 Player: leto Result: Destroyed by G-47 Trooper via exploding Fusion Modulator Performance ------------- Evolutions (2) 1000 Regions Visited (9) 1800 Robots Destroyed (120) 600 Value Destroyed (3819) 3819 Prototype IDs (17) 340 Alien Tech Used (0) 0 Bonus (1542) 1542 TOTAL SCORE: 9101 Bonus ------- Follower Combat Kills 42 Entered Garrisons 200 Used RIF Installer 1000 Aligned with FarCom 300 Cogmind --------- Core Integrity 0/550 Matter 276/300 Energy 4/100 System Corruption 3% Temperature Cool (12) Movement Treading (155) Location -8/Materials Parts ------- > --- POWER (1) -------- (None) > --- PROPULSION (4) --- Light Treads Light Treads Advanced Treads Armored Wheel > --- UTILITY (4) ------ High-capacity Storage Unit Improved Terrain Scanner Utility Shielding Relay Coupler [NC] (23) > --- WEAPON (2) ------- Heavy EM Shotgun Heavy EM Shotgun (fused) > --- INVENTORY (20) --- Deuterium Engine Improved Flight Unit Cesium-ion Thruster Improved Terrain Scan Processor Propulsion Shielding Hacking Suite Hacking Suite Hacking Suite Hacking Suite Hacking Suite System Shield System Shield Authchip [R/Combat] Authchip [R/Combat] Relay Coupler [NC] (22) Relay Coupler [Grunt] (24) Relay Coupler [Behemoth] (10) Grenade Launcher Improved Grenade Launcher Blade Saw Peak State ------------ > --- POWER ------------ Deuterium Engine > --- PROPULSION ------- Light Treads Light Treads Advanced Treads Titanium Leg > --- UTILITY ---------- High-capacity Storage Unit Improved Targeting Computer Light Armor Plating Relay Coupler [NC] > --- WEAPON ----------- Heavy EM Shotgun Heavy EM Shotgun > --- INVENTORY -------- Deuterium Engine Improved Flight Unit Improved Terrain Scanner Propulsion Shielding Utility Shielding Hacking Suite Hacking Suite Hacking Suite Hacking Suite System Shield Authchip [R/Combat] Authchip [R/Combat] Authchip [R/Combat] Authchip [R/Combat] Relay Coupler [NC] Relay Coupler [Grunt] Relay Coupler [Behemoth] Beam Rifle Grenade Launcher Rocket Launcher [Rating: 29] Favorites ----------- Power Deuterium Engine Engine Deuterium Engine Propulsion Light Treads Treads Light Treads Leg Titanium Leg Wheel Armored Wheel Flight Unit Improved Flight Unit Utility High-capacity Storage Unit Device Cooling System Storage High-capacity Storage Unit Processor Improved Targeting Computer Hackware Relay Coupler [NC] Protection Medium Armor Plating Weapon Improved EM Shotgun Energy Gun Improved EM Shotgun Energy Cannon Advanced Beam Cannon Ballistic Gun Light Assault Rifle Launcher Grenade Launcher Impact Weapon Heavy Hammer Slashing Weapon Blade Saw Special Melee Weapon Improved Datajack Build | -11 -10 -10 -9 -9 -9 -8 -8 -8 -8 ------- Run | Yrd Mat Min Mat Min Exi Min Mat Gar Mat Slots Evolved 4 | . . . 2 . . . 2 . . Power . | . . . . . . . . . . Propulsion 2 | . . . 1 . . . 1 . . Utility 2 | . . . 1 . . . 1 . . Weapon . | . . . . . . . . . . Parts Attached 87 | 6 4 2 27 2 2 1 5 14 24 Power 8 | 1 . . 3 . . . 1 2 1 Engine 8 | 1 . . 3 . . . 1 2 1 Core . | . . . . . . . . . . Reactor . | . . . . . . . . . . Propulsion 26 | 2 . 2 8 . . . 1 4 9 Treads 19 | 2 . 1 7 . . . 1 3 5 Leg 3 | . . . . . . . . . 3 Wheel 2 | . . . . . . . . 1 1 Hover . | . . . . . . . . . . Flight 2 | . . 1 1 . . . . . . Utility 25 | 1 2 . 9 . 1 . 2 6 4 Device 5 | . . . 4 . 1 . . . . Storage 3 | 1 2 . . . . . . . . Processor 1 | . . . 1 . . . . . . Hackware 6 | . . . . . . . . 5 1 Protection 10 | . . . 4 . . . 2 1 3 Artifact . | . . . . . . . . . . Weapon 28 | 2 2 . 7 2 1 1 1 2 10 Energy Gun 17 | 1 2 . 6 . . 1 1 1 5 Energy Cannon 1 | . . . 1 . . . . . . Ballistic Gun 2 | 1 . . . . . . . . 1 Ballistic Cannon . | . . . . . . . . . . Launcher 5 | . . . . 2 . . . . 3 Special Weapon . | . . . . . . . . . . Impact Weapon 1 | . . . . . . . . 1 . Slashing Weapon 1 | . . . . . . . . . 1 Piercing Weapon . | . . . . . . . . . . Special Melee Weapon 1 | . . . . . 1 . . . . Unidentified Prototypes 7 | . . . 4 . 1 . . . 2 Corrupted Parts 1 | . . . . . . . . . 1 System Corruption 3 | . . . . . . . . . 3 Parts Lost 35 | . . 2 9 . . 1 1 13 9 Power 3 | . . . 1 . . . . 1 1 Propulsion 14 | . . 1 2 . . . . 7 4 Utility 9 | . . . 3 . . . 1 3 2 Weapon 9 | . . 1 3 . . 1 . 2 2 Highest Loss Streak 5 | . . 1 3 . . 1 1 5 4 To Critical Strikes . | . . . . . . . . . . Average Backups 16 | 1 8 11 17 20 20 19 19 18 19 Power 1 | . 1 1 1 2 2 2 2 1 1 Propulsion 3 | . 4 4 3 4 4 4 4 2 1 Utility 8 | . . 2 6 9 9 9 8 9 15 Weapon 3 | . 1 3 4 4 4 3 3 3 2 Tool/Special . | . . . . . . . . . . Unused Backups 27 | . 3 . 3 . . . . 2 19 Power 1 | . . . . . . . . . 1 Propulsion 5 | . 3 . 1 . . . . . 1 Utility 20 | . . . 1 . . . . 2 17 Weapon . | . . . . . . . . . . Tool/Special 1 | . . . 1 . . . . . . Average Slot Usage (%) 88 | . 84 78 91 100 88 92 92 80 91 Engine 9 | . 13 14 10 11 11 11 9 6 7 Treads 26 | . 27 27 30 33 33 33 33 22 21 Wheel 2 | . . . . . . . . 2 7 Device 2 | . . . 8 . . . . . . Storage 10 | . 14 14 11 11 11 11 9 9 9 Processor 4 | . . . 2 11 11 11 9 9 5 Hackware 3 | . . . . . . . . 6 10 Protection 6 | . . . 6 11 11 11 15 8 7 Energy Gun 15 | . 26 21 20 1 . 9 15 8 13 Launcher 1 | . . . . 20 1 5 . . . Special Melee Weapon 1 | . . . . . 10 . . 2 1 Peak Build Rating 29 | 6 7 7 23 21 24 21 22 23 29 Average Rating 17 | 4 6 6 17 17 18 18 21 19 25 On Entrance 13 | . 6 7 6 21 17 18 18 22 23 Avg Prop Armor Cover (%) 5 | . . . 10 . . . . 4 4 Naked Turns . | . . . . . . . . . . Heaviest Build 65 | 12 49 49 64 62 62 62 65 65 60 Greatest Support 80 | 40 40 40 63 60 60 60 80 80 62 Greatest Overweight (x) 16 | 2 1 2 11 1 1 1 1 3 16 Average Overweight (x) . | . . 1 . 1 . . . . . Largest Inventory Capacity 20 | 8 20 20 20 20 20 20 20 20 20 Average Capacity 19 | 7 15 20 20 20 20 20 20 20 20 Most Carried 20 | 2 12 12 20 20 20 20 20 20 20 Average Carried 16 | 1 8 11 17 20 20 19 19 18 19 Final Capacity 20 | 8 20 20 20 20 20 20 20 20 20 Final Carried 20 | 2 12 12 20 20 20 19 20 20 20 Class Distribution -------------------- 73% | Mutant 13% | Scavenger-Mutant 9% | Bothacker-Mutant Dominant Class ---------------- Mutant | -10/Materials Mutant | -10/Mines Mutant | -9/Materials Mutant | -9/Mines Mutant | -9/Exiles Mutant | -8/Mines Scavenger-Mutant | -8/Materials Scavenger-Mutant | -8/Garrison Mutant | -8/Materials Resources | -11 -10 -10 -9 -9 -9 -8 -8 -8 -8 ----------- Run | Yrd Mat Min Mat Min Exi Min Mat Gar Mat Matter Collected 1565 | 101 228 20 368 58 . 28 120 227 415 Remotely . | . . . . . . . . . . Salvage Created 4427 | . 424 151 1844 . . 115 120 432 1341 Parts 254 | . 37 12 110 . . 5 9 16 65 Haulers Intercepted 12 | . 2 . 6 . . . . . 4 Recyclers Shooed 3 | . . . 2 . . . . . 1 Parts Field Recycled . | . . . . . . . . . . Retrieved Matter . | . . . . . . . . . . Parts Self-Destructed . | . . . . . . . . . . Prevented . | . . . . . . . . . . Parts Restored . | . . . . . . . . . . Kills | -11 -10 -10 -9 -9 -9 -8 -8 -8 -8 ------- Run | Yrd Mat Min Mat Min Exi Min Mat Gar Mat Combat Hostiles Destroyed 81 | . 12 9 27 . . 4 2 10 17 Melee 5 | . . . . . . . . 4 1 Guns 62 | . 12 9 26 . . . 2 2 11 AOE 11 | . . . 1 . . 4 . 2 4 Classes Destroyed 13 | . 5 . 5 . . 1 . . 2 Worker 1 | . . . 1 . . . . . . Builder 3 | . . . 3 . . . . . . Tunneler 3 | . . . 2 . . . . . 1 Hauler 12 | . 2 . 6 . . . . . 4 Recycler 3 | . . . 2 . . . . . 1 Mechanic 2 | . . . . . . . . . 2 Operator 4 | . 1 . 2 . . . . . 1 Watcher 11 | . 2 . 4 . . . . . 5 Swarmer 23 | . 9 9 3 . . . . 1 1 Grunt 36 | . 3 . 17 . . 3 . 4 9 Duelist 1 | . . . . . . . . . 1 Sentry 19 | . . . 7 . . . 2 4 6 Hunter 2 | . . . . . . 1 . 1 . Best Kill Streak 6 | . 4 3 6 . . 4 1 3 5 Combat Bots Only 4 | . 3 3 4 . . 4 1 3 3 Max Kills in Single Turn 3 | . 1 2 2 . . 1 1 1 3 Gunslinging 1 | . . 1 . . . . . . . Exploded 1 | . . . 1 . . 1 . 1 1 Melee 1 | . . . . . . . . 1 1 Uniques/NPCs Destroyed . | . . . . . . . . . . Combat | -11 -10 -10 -9 -9 -9 -8 -8 -8 -8 -------- Run | Yrd Mat Min Mat Min Exi Min Mat Gar Mat Hostile Shots Fired 490 | . 52 56 138 . . 22 10 119 93 Missed 122 | . 17 11 37 . . 8 2 19 28 Hits 368 | . 35 45 101 . . 14 8 100 65 Melee 2 | . . . . . . . . . 2 Projectile 366 | . 35 45 101 . . 14 8 100 63 AOE 1 | . . . . . . . . . 1 Critical Strikes 13 | . . 1 1 . . 1 . 7 3 Actively Blocked 1 | . . . . . . . . . 1 Damage Taken 5557 | . 328 357 1337 29 . 282 117 1535 1572 Core 917 | . 64 93 107 . . 13 14 196 430 Absorbed by Shields . | . . . . . . . . . . Redirected to Shielding 52 | . . . . . . . . . 52 Regen/Repaired (Parts) 189 | . 55 . 85 . . . . . 49 Core Remaining (%) 69 | 100 . 37 . . . 70 . . . Volleys Fired 263 | . 33 22 107 . . 8 5 12 76 Largest 2 | . 2 2 2 . . 1 2 2 2 Hottest 115 | . 100 100 115 . . 30 101 101 100 Shots Fired 437 | . 66 40 192 1 . 8 6 19 105 Gun 418 | . 66 40 192 . . . 6 16 98 Cannon . | . . . . . . . . . . Launcher 19 | . . . . 1 . 8 . 3 7 Special . | . . . . . . . . . . Kinetic 4 | . 4 . . . . . . . . Thermal 183 | . 62 40 51 . . . 1 9 20 Explosive 19 | . . . . 1 . 8 . 3 7 Electromagnetic 231 | . . . 141 . . . 5 7 78 Robot Hit Streak 29 | . 7 8 29 . . 4 6 13 16 Robot Miss Streak 9 | . 3 9 5 . . 1 1 3 3 Penetration Max . | . . . . . . . . . . Secondary Targets 5 | . 2 1 . . . . . 1 1 Max Gunslinging Chain 1 | . 1 1 . . . . . 1 1 Shots Hit Robots 360 | . 40 16 158 . 2 5 5 43 91 Core Hits 242 | . 25 10 114 . . 10 5 17 61 Critical Kills . | . . . . . . . . . . Critical Parts Destroyed 4 | . . . . . . . . 4 . Critical Strikes 15 | . 7 2 1 . . . . 4 1 Burn 10 | . 7 2 1 . . . . . . Smash 4 | . . . . . . . . 4 . Sever 1 | . . . . . . . . . 1 Melee Attacks 74 | . . . . . 2 . . 56 16 Impact 43 | . . . . . . . . 43 . Slashing 12 | . . . . . . . . . 12 Piercing . | . . . . . . . . . . Sneak Attacks 6 | . . . . . 2 . . 2 2 Combat Hostiles 2 | . . . . . . . . 1 1 Follow-up Attacks . | . . . . . . . . . . Damage Inflicted 7819 | . 521 232 2970 . . 356 87 1104 2549 Guns 5151 | . 518 229 2564 . . . 87 137 1616 Cannons . | . . . . . . . . . . Explosions 1823 | . . . 350 . . 355 . 300 818 Melee 769 | . . . . . . . . 667 102 Ramming 76 | . 3 3 56 . . 1 . . 13 Kinetic 19 | . 19 . . . . . . . . Thermal 2669 | . 499 229 1015 . . . . 206 720 Explosive 853 | . . . . . . 355 . 151 347 Electromagnetic 3433 | . . . 1899 . . . 87 80 1367 Impact 667 | . . . . . . . . 667 . Slashing 102 | . . . . . . . . . 102 Piercing . | . . . . . . . . . . Highest Corruption 3 | . . . 1 1 1 1 . . 3 Average Corruption 1 | . . . 1 1 1 1 . . 3 Corruption Purged . | . . . . . . . . . . Corruption Blocked . | . . . . . . . . . . Effects 69 | . . . 24 3 1 1 . . 40 Message Errors 18 | . . . 5 . 1 . . . 12 Matter Fused 20 | . . . 12 . . . . . 8 Heat Flow Errors 10 | . . . 2 2 . . . . 6 Energy Discharges 7 | . . . 1 . . 1 . . 5 Parts Rejected 1 | . . . . . . . . . 1 Parts Fused 1 | . . . . . . . . . 1 Data Loss (minor) 2 | . . . 1 . . . . . 1 Data Loss (major) 5 | . . . 1 . . . . . 4 Misfires 4 | . . . 2 1 . . . . 1 Alerts 1 | . . . . . . . . . 1 Overload Shots . | . . . . . . . . . . Overflow Damage 199 | . . . 36 . . . . 138 25 Projectiles . | . . . . . . . . . . Explosions 61 | . . . 36 . . . . . 25 Melee 138 | . . . . . . . . 138 . Knockbacks 2 | . . . 1 . . . . 1 . Impact 2 | . . . 1 . . . . 1 . Kinetic . | . . . . . . . . . . Secondary . | . . . . . . . . . . Self-Inflicted Damage 707 | . . . 62 29 . 57 . 87 472 Shots 19 | . . . 2 1 . 3 . 3 10 Rammed 16 | . 3 2 7 . . 1 . . 3 Targets Rammed 18 | . 3 2 7 . . 1 . . 5 Kicked 2 | . . . . . . . . . 2 Crushed . | . . . . . . . . . . Highest Temperature 524 | . 293 468 510 152 . 16 42 342 524 Average Temperature 114 | . 90 170 179 72 . 8 16 148 69 Received Heat Transfer 1797 | . 72 . 615 . . 54 36 612 408 Effects 14 | . 1 2 4 . . . . 2 5 Shutdowns 4 | . . 1 2 . . . . . 1 Energy Bleed 3 | . 1 . . . . . . . 2 Interference 2 | . . . 1 . . . . . 1 Short Circuit 3 | . . . 1 . . . . 1 1 Damage (minor) 2 | . . 1 . . . . . 1 . Siege Activations . | . . . . . . . . . . Martial Activations . | . . . . . . . . . . Shielding Activations . | . . . . . . . . . . Robots Disrupted . | . . . . . . . . . . Combat Hostiles . | . . . . . . . . . . Robots Corrupted 4 | . . . 1 . . . . 2 1 Combat Hostiles 3 | . . . . . . . . 2 1 Parts Fried 22 | . . . 13 . . . . 2 7 Impact Corruptions 4 | . . . . . . . . 4 . Robots Melted . | . . . . . . . . . . Combat Hostiles . | . . . . . . . . . . Parts Melted 8 | . 4 2 1 . . . . . 1 Heat Transferred 5733 | . 1974 814 1632 . . . . 271 1042 Parts Sabotaged . | . . . . . . . . . . Parts Stolen . | . . . . . . . . . . Parts Stripped . | . . . . . . . . . . Power Chain Reactions 14 | . . . 8 . . . . 1 5 Alert | -11 -10 -10 -9 -9 -9 -8 -8 -8 -8 ------- Run | Yrd Mat Min Mat Min Exi Min Mat Gar Mat Maximum Alert Level 1 | . . . 1 . . . . 1 1 Low Security (%) 83 | 100 100 100 79 100 . 100 100 67 78 Level 1 16 | . . . 20 . . . . 32 21 Level 2 . | . . . . . . . . . . Level 3 . | . . . . . . . . . . Level 4 . | . . . . . . . . . . Level 5 . | . . . . . . . . . . High Security . | . . . . . . . . . . Max Security . | . . . . . . . . . . Peak Influence 393 | . 72 70 311 117 . 133 39 393 272 Initial 191 | . . . . 117 . . 39 7 191 Average 98 | . 22 18 110 38 . 99 8 161 129 Influence Increases 3214 | . 359 210 1028 40 . 133 70 576 798 Destroy 0b10 Robot/C 1660 | . 240 180 540 . . 80 40 220 360 Destroy 0b10 Robot/NC 195 | . 25 . 100 . . . . . 70 Destroy Leader 456 | . 48 30 200 . . 20 20 20 118 Allied During Kill 3 | . . . . . . . . 2 1 Successful Hack 113 | . 45 . 49 . . . 9 . 10 Disable Machine 165 | . . . 45 . . . . . 120 Anti-Garrison Action 300 | . . . . . . . . 300 . Destroy Structure 202 | . 1 . 34 10 . 33 1 34 89 Lose Combat Pursuer 120 | . . . 60 30 . . . . 30 Influence Decreases 2948 | . 356 213 726 342 . 30 162 194 925 Entered New Map 458 | . . 3 . 185 . . 64 4 202 Time Decay 2005 | . 356 190 576 157 . 20 89 . 617 Lost Part 312 | . . 20 57 . . 10 9 130 86 Lost Ally 80 | . . . . . . . . 60 20 Purge Threat 93 | . . . 93 . . . . . . Squads Dispatched 15 | . 1 . 9 . . . . . 5 Investigation 9 | . . . 7 . . . . . 2 Extermination . | . . . . . . . . . . Reinforcement 5 | . 1 . 2 . . . . . 2 Assault . | . . . . . . . . . . Garrison 1 | . . . . . . . . . 1 Intercept . | . . . . . . . . . . Searches Triggered . | . . . . . . . . . . Construction Impeded . | . . . . . . . . . . Haulers Reinforced . | . . . . . . . . . . Active Scanning Responses . | . . . . . . . . . . Cargo Convoy Interrupts . | . . . . . . . . . . Stealth | -11 -10 -10 -9 -9 -9 -8 -8 -8 -8 --------- Run | Yrd Mat Min Mat Min Exi Min Mat Gar Mat Distress Signals 7 | . 2 . 2 . . . . . 3 Communications Jammed . | . . . . . . . . . . Distress Signals . | . . . . . . . . . . Times Spotted 138 | . 18 9 45 2 . 5 2 19 38 Peak Tracking Total 6 | . 5 3 6 2 . 4 1 6 3 Tactical Retreats 6 | . . . 3 1 . . . . 2 Traps | -11 -10 -10 -9 -9 -9 -8 -8 -8 -8 ------- Run | Yrd Mat Min Mat Min Exi Min Mat Gar Mat Traps Triggered 5 | . 3 . . . . . . 2 . Indirectly . | . . . . . . . . . . Trap Hack Attempts . | . . . . . . . . . . Triggered . | . . . . . . . . . . Disarmed . | . . . . . . . . . . Reprogrammed . | . . . . . . . . . . Reused . | . . . . . . . . . . Traps Extracted . | . . . . . . . . . . Installed . | . . . . . . . . . . Triggered . | . . . . . . . . . . Machines | -11 -10 -10 -9 -9 -9 -8 -8 -8 -8 ---------- Run | Yrd Mat Min Mat Min Exi Min Mat Gar Mat Machines Disabled 14 | . . . 3 . . . . 3 8 Max in Single Turn 2 | . . . 2 . . . . 1 2 Garrison Relay 3 | . . . . . . . . 3 . Machines Repaired . | . . . . . . . . . . Machines Dismantled . | . . . . . . . . . . Machines Sabotaged . | . . . . . . . . . . Overloaded Fab Kills . | . . . . . . . . . . Hacking | -11 -10 -10 -9 -9 -9 -8 -8 -8 -8 --------- Run | Yrd Mat Min Mat Min Exi Min Mat Gar Mat Machines Accessed 32 | . 8 . 10 . 2 . 2 1 9 Terminals 22 | . 7 . 8 . . . 1 1 5 Fabricators . | . . . . . . . . . . Repair Stations 3 | . 1 . 1 . . . . . 1 Recycling Units . | . . . . . . . . . . Scanalyzers 3 | . . . 1 . . . . . 2 Garrison Access 2 | . . . . . . . 1 . 1 Total Hacks 103 | . 27 . 40 . 2 . 3 3 28 Successful 57 | . 13 . 21 . 2 . 3 . 18 Failed 45 | . 14 . 19 . . . . 3 9 Catastrophic 7 | . 3 . 3 . . . . . 1 Database Lockouts 1 | . . . . . . . . . 1 Manual 62 | . 20 . 24 . 1 . 2 . 15 Terminals 77 | . 25 . 33 . . . 1 3 15 Fabricators . | . . . . . . . . . . Repair Stations 11 | . 2 . 4 . . . . . 5 Recycling Units . | . . . . . . . . . . Scanalyzers 10 | . . . 3 . . . . . 7 Garrison Access 3 | . . . . . . . 2 . 1 Terminal Hacks 13 | . 3 . 6 . 2 . . . 2 Record 2 | . . . . . 2 . . . . Robot Analysis 1 | . . . 1 . . . . . . Prototype ID Bank 1 | . . . 1 . . . . . . Terminal Index 3 | . 1 . 1 . . . . . 1 Unreport Threat 2 | . . . 1 . . . . . 1 Locate Traps 2 | . 1 . 1 . . . . . . Recall Investigation 1 | . 1 . . . . . . . . Zone Layout 1 | . . . 1 . . . . . . Fabricator Hacks . | . . . . . . . . . . Repair Station Hacks 8 | . 2 . 2 . . . . . 4 Scan Component 4 | . 1 . 1 . . . . . 2 Repair 4 | . 1 . 1 . . . . . 2 Recycling Unit Hacks . | . . . . . . . . . . Scanalyzer 8 | . . . 3 . . . . . 5 Insert Component 3 | . . . 1 . . . . . 2 Analyze 2 | . . . 1 . . . . . 1 Retrieve Study 3 | . . . 1 . . . . . 2 Garrison Access Hacks 2 | . . . . . . . 1 . 1 Unlock Access 1 | . . . . . . . 1 . . Coupler Status 1 | . . . . . . . . . 1 Unauthorized Hacks 26 | . 8 . 10 . . . 2 . 6 Terminals 25 | . 8 . 10 . . . 1 . 6 Assimilate 1 | . 1 . . . . . . . . Botnet 20 | . 6 . 8 . . . 1 . 5 Disrupt 2 | . 1 . 1 . . . . . . Operators 2 | . . . 1 . . . . . 1 Fabricators . | . . . . . . . . . . Repair Stations . | . . . . . . . . . . Recycling Units . | . . . . . . . . . . Scanalyzers . | . . . . . . . . . . Garrison Access 1 | . . . . . . . 1 . . Restock 1 | . . . . . . . 1 . . Data Cores Recovered . | . . . . . . . . . . Used . | . . . . . . . . . . Hacking Detections 24 | . 7 . 10 . . . . 1 6 Full Trace Events 14 | . 3 . 9 . . . . 1 1 Feedback Events 1 | . . . 1 . . . . . . Corruption 1 | . . . 1 . . . . . . Feedback Blocked . | . . . . . . . . . . Robot Schematics Acquired . | . . . . . . . . . . Robots Built . | . . . . . . . . . . Authchips . | . . . . . . . . . . Time . | . . . . . . . . . . Total Robot Build Rating . | . . . . . . . . . . Part Schematics Acquired 2 | . . . 1 . . . . . 1 Parts Built . | . . . . . . . . . . Authchips . | . . . . . . . . . . Time . | . . . . . . . . . . Total Part Build Rating . | . . . . . . . . . . Part Studies Acquired 3 | . . . 1 . . . . . 2 Parts Repaired 4 | . 1 . 1 . . . . . 2 Time 123 | . 26 . 18 . . . . . 79 Parts Recycled . | . . . . . . . . . . Recycled Matter . | . . . . . . . . . . Retrieved Matter . | . . . . . . . . . . Retrieved Components . | . . . . . . . . . . Parts Scanalyzed 2 | . . . 1 . . . . . 1 Part Schematics Acquired 2 | . . . 1 . . . . . 1 Parts Damaged . | . . . . . . . . . . Bothacking | -11 -10 -10 -9 -9 -9 -8 -8 -8 -8 ------------ Run | Yrd Mat Min Mat Min Exi Min Mat Gar Mat Used RIF Installer 2 | . . . . . . . . 2 . Structural Interface 1 | . . . . . . . . 1 . Robots Hacked 11 | . . . . . 2 . . 6 3 Non-combat 1 | . . . . . 1 . . . . Combat 10 | . . . . . 1 . . 6 3 Robot Hacks Applied 14 | . . . . . 2 . . 9 3 parse_system 2 | . . . . . 2 . . . . scatter_targeting 1 | . . . . . . . . . 1 link_complan 1 | . . . . . . . . 1 . spike_heat 2 | . . . . . . . . 2 . disable_weapons 1 | . . . . . . . . . 1 go_dormant 1 | . . . . . . . . 1 . overwrite_iff 6 | . . . . . . . . 5 1 Relay Couplers Released 13 | . . . . . . . . 13 . Machine Destruction 13 | . . . . . . . . 13 . Attached 6 | . . . . . . . . 5 1 Fabnet Peak Effective % . | . . . . . . . . . . Robots Rewired . | . . . . . . . . . . Allies Hacked . | . . . . . . . . . . Hacks Repelled . | . . . . . . . . . . Allies | -11 -10 -10 -9 -9 -9 -8 -8 -8 -8 -------- Run | Yrd Mat Min Mat Min Exi Min Mat Gar Mat Total Allies 6 | . . . . . . . . 5 1 Largest Group 2 | . . . . . . . . 2 1 Highest-Rated Group 29 | . . . . . . . . 29 16 Highest-Rated Ally 29 | . . . . . . . . 29 16 Total Orders . | . . . . . . . . . . Ally Attacks 20 | . . . . . . . . 15 5 Total Damage 207 | . . . . . . . . 160 47 Kills 2 | . . . . . . . . 1 1 Allies Corrupted . | . . . . . . . . . . Allies Melted . | . . . . . . . . . . Intel | -11 -10 -10 -9 -9 -9 -8 -8 -8 -8 ------- Run | Yrd Mat Min Mat Min Exi Min Mat Gar Mat Active Infowar (turns) 318 | . . . 3 . . . . 68 247 Terrain 318 | . . . 3 . . . . 68 247 Robot Analysis Total 1 | . . . 1 . . . . . . Derelict Logs Recovered 3 | . . 2 . 1 . . . . . Drone Launches . | . . . . . . . . . . Drone Recoveries . | . . . . . . . . . . Exploration | -11 -10 -10 -9 -9 -9 -8 -8 -8 -8 ------------- Run | Yrd Mat Min Mat Min Exi Min Mat Gar Mat Turns Passed 10789 | 62 1397 787 2817 462 358 52 365 1787 2702 Spaces Moved 4435 | 36 611 286 1255 229 218 16 182 701 901 Core 8 | 7 . . . . . . . . 1 Treads 4296 | 29 611 286 1254 229 218 16 182 610 861 Legs 37 | . . . . . . . . . 37 Wheels 93 | . . . . . . . . 91 2 Hover . | . . . . . . . . . . Flight 1 | . . . 1 . . . . . . Fastest Speed 50 | 50 160 240 160 200 160 160 160 145 150 Average Speed 186 | 145 200 240 181 200 160 185 160 176 183 Slowest Speed 850 | 160 240 320 850 200 200 200 200 240 850 Overloaded Moves . | . . . . . . . . . . Propulsion Burnouts . | . . . . . . . . . . Robots Hopped . | . . . . . . . . . . Potential Cave-ins . | . . . . . . . . . . Cave-ins Triggered . | . . . . . . . . . . Exploration Rate (%) 49 | 4 98 45 78 64 60 10 17 45 69 Regions Visited 9 Branch Regions 4 Pre-discovered Areas 2 | . . 1 . . 1 . . . . Known Exits Taken 2 | . . . . . . 1 1 . . Unknown Exits Taken 6 | 1 1 1 1 1 1 . . . . Scrap Searched 1 | . . . . 1 . . . . . Spaces Dug 4 | . . . . . . . . 4 . Terrain Destroyed 204 | . . . 30 10 . 48 . 27 89 Melee 4 | . . . . . . . . 4 . Projectile . | . . . . . . . . . . AOE 200 | . . . 30 10 . 48 . 23 89 Terrain Rammed . | . . . . . . . . . . Walls Destroyed . | . . . . . . . . . . Machines Disabled . | . . . . . . . . . . Actions | -11 -10 -10 -9 -9 -9 -8 -8 -8 -8 --------- Run | Yrd Mat Min Mat Min Exi Min Mat Gar Mat Total 6376 | 43 715 343 1591 233 224 28 248 1153 1798 Wait 1389 | . 44 31 163 3 . . 54 340 754 Move 4425 | 35 610 285 1254 228 217 15 181 699 901 Hop . | . . . . . . . . . . Pick Up 55 | 2 13 1 15 . . . 2 15 7 Fast Attach 40 | 6 5 . 10 . . . 3 3 13 Attach 19 | . . 1 4 . . 1 1 10 2 Detach 1 | . . . . . . . . 1 . Swap 59 | . 2 1 20 2 4 3 1 9 17 Drop 31 | . 5 . 11 . 1 . 1 6 7 Fire 263 | . 33 22 107 . . 8 5 12 76 Melee 74 | . . . . . 2 . . 56 16 Ram . | . . . . . . . . . . Kick 2 | . . . . . . . . . 2 Crush 16 | . 3 2 7 . . 1 . . 3 Escape Stasis 2 | . . . . . . . . 2 . Rewire . | . . . . . . . . . . Trap . | . . . . . . . . . . Miscellaneous . | . . . . . . . . . . Route ------- -11/Scrapyard -10/Materials (discovered 5 exits: *Mat x3 / [*Min x2]) -10/Mines -9/Materials (discovered 5 exits: *Mat x3 / [*Min] / *Sto) -9/Mines (discovered 2 exits: *Mat / *Exi) -9/Exiles -8/Mines -8/Materials (discovered 2 exits: Fac / Gar) -8/Garrison -8/Materials History --------- Turn | Location | Event 35 | -11/Scrapyard | Discovered new exit (range 13) 63 | -11/Scrapyard | Entered Materials 228 | -10/Materials | Discovered new exit (range 11) 308 | -10/Materials | Build established: Mutant 407 | -10/Materials | Discovered new exit (range 16) 597 | -10/Materials | Discovered new exit (range 16) 763 | -10/Materials | Repaired Ion Engine 863 | -10/Materials | Derelicts attacked the area 931 | -10/Materials | Discovered new exit (range 8) 1151 | -10/Materials | Discovered new exit (range 16) 1460 | -10/Materials | Entered Mines 1461 | -10/Mines | Learned location of Storage (-9) 1641 | -10/Mines | Core integrity fell below 50% 1661 | -10/Mines | Learned 8 Materials zone layouts 1740 | -10/Mines | Learned 2 Materials zone layouts 2197 | -10/Mines | Received a Rocket Launcher from a helpful Derelict 2213 | -10/Mines | Discovered new exit (range 14) 2247 | -10/Mines | Entered Materials 2247 | -9/Materials | Evolved 2 slots: Propulsion x1, Utility x1 2248 | -9/Materials | Identified exit to Materials 2248 | -9/Materials | Identified exit to Storage 2451 | -9/Materials | Lost 3 parts (1p1n1w) 2627 | -9/Materials | Repaired Broken Lgt. Treads 2931 | -9/Materials | Discovered new exit (range 14) 3933 | -9/Materials | Discovered exit to Materials (range 16) 5064 | -9/Materials | Entered Mines 5079 | -9/Mines | Assembled infested the area 5123 | -9/Mines | Met a Derelict bent on vengeance 5351 | -9/Mines | Discovered exit to Materials (range 9) 5492 | -9/Mines | Found a hidden stash of uninstalled traps 5516 | -9/Mines | Deemed a non-threat by the Exiles lab entrance 5518 | -9/Mines | Discovered new exit (range 5) 5526 | -9/Mines | Entered Exiles 5572 | -9/Exiles | Met 8R-AWN 5602 | -9/Exiles | Met EX-HEX 5649 | -9/Exiles | Met EX-BIN 5672 | -9/Exiles | Aligned with FarCom system 5673 | -9/Exiles | Given EX-Vault access code 5710 | -9/Exiles | Opened EX-Vault 5718 | -9/Exiles | Found Prototype Device 5718 | -9/Exiles | Identified Supersonic Drone Bay 5751 | -9/Exiles | Warned to stay clear of 0b10 Research branches 5798 | -9/Exiles | Met EX-DEC 5822 | -9/Exiles | Learned location of Zion (-7) 5867 | -9/Exiles | Discovered new exit (range 14) 5884 | -9/Exiles | Entered Mines 5916 | -8/Mines | Discovered exit to Materials (range 12) 5936 | -8/Mines | Entered Materials 5936 | -8/Materials | Evolved 2 slots: Propulsion x1, Utility x1 5937 | -8/Materials | Identified exit to Factory 6103 | -8/Materials | Identified exit to Garrison 6301 | -8/Materials | Entered Garrison 6321 | -8/Garrison | Build established: Scavenger-Mutant 6353 | -8/Garrison | Triggered checkpoint 6844 | -8/Garrison | Lost 4 parts (1n1u2w) 7103 | -8/Garrison | Installed Relay Interface Framework 7164 | -8/Garrison | Lost 5 parts (1p3n1u) 7268 | -8/Garrison | Garrison Relay disabled 7310 | -8/Garrison | Garrison Relay disabled 7629 | -8/Garrison | Triggered checkpoint 7715 | -8/Garrison | Lost 3 parts (3n) 7822 | -8/Garrison | Build established: Bothacker-Mutant 7852 | -8/Garrison | Expanded RIF knowledge: Structural Interface 7913 | -8/Garrison | Garrison Relay disabled 7993 | -8/Garrison | Discovered new exit (range 12) 8088 | -8/Garrison | Entered Materials 8461 | -8/Materials | Core integrity fell below 50% 8533 | -8/Materials | Lost 4 parts (2n2w) 8568 | -8/Materials | Garrison activated, responded to threat 8626 | -8/Materials | Lost 3 parts (2n1u) 8983 | -8/Materials | Build established: Mutant 9072 | -8/Materials | Repaired Lgt. Treads+ 9209 | -8/Materials | Repaired Broken Adv. Treads 9387 | -8/Materials | Core integrity fell below 20% 9831 | -8/Materials | Central database locked down 10790 | -8/Materials | Destroyed by G-47 Trooper via exploding Fusion Modulator Last Messages --------------- ACWMMOJ% >YAVWBLCZGTC:XWV6B System corrupted: Heat flow error (+132). G1XZA3L9 X|YBC8QEI HHQ42I/XBU#< Chain reaction triggered in Lgt. Deuterium Engine. W-25 Informer destroyed. TF Node disabled. Imp. Sensor Array tumbles out of TF Node. Imp. Signal Interpreter tumbles out of TF Node. System corrupted: Matter fused (-7). K-01 Serf cleans the Matter Filter. System corrupted: Energy discharge (-17). Acquired Hacking Suite. System corrupted: Component data lost. System corrupted: Matter fused (-7). YAN1I#5J0IHYVBX THWOEK System corrupted: Energy discharge (-24). G-47 Trooper destroyed. Acquired 60 matter. Fusion Modulator explodes. Map ----- +----------------------------------------------------+ | ????????????????????????????????????????? | | ?????? ?????????????????????????????????? | | ?????? ?????????????????????????????????? | | ?????? ?????????????????????????????????? | | ?????? ?????????????????????????????????? | | ?????? ?????????????????????????????????? | | ?????? ?????????????????????????????????? | | ?????? ?????????Y???????????????????????? | | ?????# #????????????????????????????????? | | ?????# #????????????????????????????????? | | ?????# #????????????????????????????????? | | ?????# #????#???????????????????????????? | | ###### #????????????????????????????????? | | # # #????????????????????????????????? | | # # #????????????????????????????????? | | # # #???#????#?????#? ?????????????? | | # # #???????????????? #????????????? | | # # ##????????#??#??? ##???????????? | | # ###??#?????????? #????????????? | | # % #?##??????#??# #????????????? | | # #?#?#????##??# #????????????? | | # # ###????????##? #? ???? ?????? | | ######/## #??#???##?#??# +?? ?????????? | | # ## #??########### #? ?? ?????? | | # ## ##?# = = # #?? ? ??????? | | # !#?#* @ # #? ? ????????? | | # "= !#?# """ # #??###???????? | | # "% #?#g """ # ##??#?#??????? | | # "" "### """ # #??#?????????? | | ### # # ##?# + #????????#???? | | ? # ##?# # #??##????#???? | | # # #??# # #???? ???????? | | # """ # ##?########### ##???????????? | | # """ # ############# = # ??????????? | | # """ # #???????????? | | # + ! + ???????#??? | | # """ # #? ???? ????? | | # """ ## #/########## #? ????????? | | # """ ## # ########? ?????????? | | # ## # """"""" #?????#????????????? | | # ## # """"""" ########???#?####### | | ########## # """"""" ## * #?????# | | ?????????# #s""""""" ## ##????# | | ?#########+# """"""" ## ####### | | ?# # ## """ + + | | ?# #+##""###### """ ### ### | | ?# # # """ #?# #?# | | ?# + % + # ###+### | | ?# # # """ # | | ?# # " # """ + | +----------------------------------------------------+ Best States ------------- Heat Dissipation 50 Energy Generation 18 Energy Capacity 275 Matter Stores 300 Matter Capacity 300 Sight Range 16 Terrain Scan Range 16 Terrain Scan Density 10 Armor Coverage 375 Propulsion Shielding 33 Utility Shielding 33 Evasion (%) 40 Targeting Accuracy 6 Recoil Reduction 4 Particle Charging 22 Relay Coupler Types 2 Relay Coupler Value 47 Authchip Count 5 Item Schematics ----------------- Hacking Suite | -9/Materials | Scanalyzed System Shield | -8/Materials | Scanalyzed Robot Schematics ------------------ None Fabricated ------------ Nothing Repaired ---------- Ion Engine | 8% | -10/Materials Lgt. Treads | 39% | -9/Materials | Broken Lgt. Treads | 65% | -8/Materials Adv. Treads | 99% | -8/Materials | Broken Studied --------- Lgt. Treads | -9/Materials | Hacked Imp. Datajack | -8/Materials | Hacked Cesium-ion Thruster | -8/Materials | Hacked Alien Tech Used ----------------- None Achievements -------------- May I Have Another? Mindtrick Watch This! Challenges ------------ None Game ------ Seed SigixBattleBlade Manual? 0 Play Time 01:09:13 Cumulative 13.9 hours Start 2026.01.09 @ 20:30:59 End 2026.01.10 @ 13:12:14 Sessions 3 Manual Loads 0 Difficulty Rogue Special Mode None Game No. 18 Rogue 18 Adventurer 0 Explorer 0 Win Type - Total 0 Types 0/0/0/0/0/0/0/0/0/0 Lore% 9 Gallery% 21 Achievement% 23 Wizard Run 0 Options --------- Layout 1 ASCII 0 Keyboard 1 Movement Vi Keybinds 0 Fullscreen 1 Font 24/Smallcaps Map View 50x35 Zoom Use 0% Tactical HUD 0 Map Filters NONE Filters NONE Steam 1 RUN: 6dd68c20-ad2c-4080-ab12-5642c7a792f1